[Event "Titled Tuesday Blitz May 03 Early 2022"]
[White "Bacrot, Etienne"]
[Black "Andreikin, Dmitry"]
[WhiteFideId "605506"]
[BlackFideId "4158814"]
[WhiteElo "2673"]
[BlackElo "2736"]
[Result "0-1"]
[Round "08"]
[TimeControl "180+1"]
[Date "2022.05.03"]
[WhiteClock "0:00:30"]
[BlackClock "0:01:23"]

1. e4 {[%clk 0:03:00]}  c5 {[%clk 0:03:00]} 2. Nf3 {[%clk 0:03:00]}  e6 {[%clk 0:03:00]} 3. b3 {[%clk 0:03:00]}  b6 {[%clk 0:02:58]} 4. Bb2 {[%clk 0:02:59]}  Bb7 {[%clk 0:02:59]} 5. Qe2 {[%clk 0:02:59]}  Nf6 {[%clk 0:02:58]} 6. e5 {[%clk 0:02:59]}  Nd5 {[%clk 0:02:57]} 7. g3 {[%clk 0:02:59]}  Nb4 {[%clk 0:02:56]} 8. Na3 {[%clk 0:02:58]}  N8c6 {[%clk 0:02:45]} 9. c3 {[%clk 0:02:39]}  Nd5 {[%clk 0:02:30]} 10. Bg2 {[%clk 0:02:38]}  d6 {[%clk 0:02:23]} 11. c4 {[%clk 0:02:20]}  Ndb4 {[%clk 0:02:23]} 12. exd6 {[%clk 0:02:20]}  Qxd6 {[%clk 0:02:23]} 13. O-O {[%clk 0:02:18]}  Qd3 {[%clk 0:02:18]} 14. Qe1 {[%clk 0:02:11]}  O-O-O {[%clk 0:02:12]} 15. Bc3 {[%clk 0:01:50]}  Be7 {[%clk 0:02:11]} 16. Bxg7 {[%clk 0:01:20]}  Rhg8 {[%clk 0:02:11]} 17. Bc3 {[%clk 0:01:21]}  Nd4 {[%clk 0:02:08]} 18. Ne5 {[%clk 0:00:49]}  Qf5 {[%clk 0:01:38]} 19. Bxd4 {[%clk 0:00:49]}  Bxg2 {[%clk 0:01:30]} 20. Kxg2 {[%clk 0:00:49]}  Rxd4 {[%clk 0:01:31]} 21. Nf3 {[%clk 0:00:41]}  Nd3 {[%clk 0:01:24]} 22. Qe5 {[%clk 0:00:30]}  Nxe5 {[%clk 0:01:23]} 0-1


[Site "https://www.chess.com"]

[Event "Titled Tuesday Blitz May 03 Early 2022"]
[White "Balabayeva, Xeniya"]
[Black "Cramling Bellon, Anna"]
[WhiteFideId "13719688"]
[BlackFideId "32009232"]
[WhiteElo "1941"]
[BlackElo "1905"]
[Result "0-1"]
[Round "08"]
[TimeControl "180+1"]
[Date "2022.05.03"]
[WhiteClock "0:00:01"]
[BlackClock "0:00:02"]

1. e4 {[%clk 0:03:00]}  c5 {[%clk 0:02:59]} 2. Nf3 {[%clk 0:03:00]}  e6 {[%clk 0:02:59]} 3. g3 {[%clk 0:03:00]}  Nc6 {[%clk 0:02:56]} 4. Bg2 {[%clk 0:03:00]}  d5 {[%clk 0:02:55]} 5. exd5 {[%clk 0:02:54]}  exd5 {[%clk 0:02:56]} 6. O-O {[%clk 0:02:53]}  Nf6 {[%clk 0:02:55]} 7. d4 {[%clk 0:02:53]}  Be7 {[%clk 0:02:50]} 8. dxc5 {[%clk 0:02:48]}  Be6 {[%clk 0:02:48]} 9. Re1 {[%clk 0:02:43]}  O-O {[%clk 0:02:44]} 10. Be3 {[%clk 0:02:03]}  Ng4 {[%clk 0:02:36]} 11. Bd4 {[%clk 0:01:58]}  Rc8 {[%clk 0:02:27]} 12. c3 {[%clk 0:01:50]}  a5 {[%clk 0:01:59]} 13. a3 {[%clk 0:01:44]}  b6 {[%clk 0:01:27]} 14. cxb6 {[%clk 0:01:33]}  Nxd4 {[%clk 0:01:17]} 15. Nxd4 {[%clk 0:01:15]}  Qxb6 {[%clk 0:01:12]} 16. Qe2 {[%clk 0:00:51]}  Bc5 {[%clk 0:00:59]} 17. Rd1 {[%clk 0:00:44]}  Rfe8 {[%clk 0:00:43]} 18. Qd2 {[%clk 0:00:26]}  Bxd4 {[%clk 0:00:35]} 19. cxd4 {[%clk 0:00:24]}  Bf5 {[%clk 0:00:28]} 20. Nc3 {[%clk 0:00:22]}  Rcd8 {[%clk 0:00:15]} 21. Nxd5 {[%clk 0:00:18]}  Qb3 {[%clk 0:00:09]} 22. Nc3 {[%clk 0:00:17]}  Nf6 {[%clk 0:00:04]} 23. Rac1 {[%clk 0:00:14]}  Rb8 {[%clk 0:00:04]} 24. d5 {[%clk 0:00:07]}  Qxb2 {[%clk 0:00:04]} 25. Qxb2 {[%clk 0:00:04]}  Rxb2 {[%clk 0:00:05]} 26. d6 {[%clk 0:00:04]}  Bd7 {[%clk 0:00:04]} 27. Nd5 {[%clk 0:00:03]}  Nxd5 {[%clk 0:00:02]} 28. Bxd5 {[%clk 0:00:02]}  h6 {[%clk 0:00:02]} 29. Rc7 {[%clk 0:00:02]}  Rd8 {[%clk 0:00:02]} 30. Re1 {[%clk 0:00:01]}  Rd2 {[%clk 0:00:02]} 0-1


[Site "https://www.chess.com"]

[Event "Titled Tuesday Blitz May 03 Early 2022"]
[White "Bashirli, Saadat"]
[Black "Hoffmann, Asa"]
[WhiteFideId "13429990"]
[BlackFideId "2001470"]
[WhiteElo "1173"]
[BlackElo "2117"]
[Result "1-0"]
[Round "08"]
[TimeControl "180+1"]
[Date "2022.05.03"]
[WhiteClock "0:01:17"]
[BlackClock "0:01:22"]

1. d4 {[%clk 0:03:00]}  Nf6 {[%clk 0:02:53]} 2. Bg5 {[%clk 0:02:58]}  e6 {[%clk 0:02:50]} 3. e4 {[%clk 0:02:55]}  d6 {[%clk 0:02:46]} 4. Nc3 {[%clk 0:02:52]}  Be7 {[%clk 0:02:46]} 5. Bd3 {[%clk 0:02:47]}  c6 {[%clk 0:02:46]} 6. Nge2 {[%clk 0:02:47]}  d5 {[%clk 0:02:44]} 7. e5 {[%clk 0:02:46]}  Nfd7 {[%clk 0:02:44]} 8. Bxe7 {[%clk 0:02:45]}  Qxe7 {[%clk 0:02:44]} 9. f4 {[%clk 0:02:42]}  g6 {[%clk 0:02:43]} 10. g3 {[%clk 0:02:39]}  a6 {[%clk 0:02:43]} 11. a3 {[%clk 0:02:37]}  c5 {[%clk 0:02:43]} 12. O-O {[%clk 0:02:33]}  Nc6 {[%clk 0:02:42]} 13. dxc5 {[%clk 0:02:31]}  Nxc5 {[%clk 0:02:42]} 14. Kh1 {[%clk 0:02:28]}  Bd7 {[%clk 0:02:41]} 15. b4 {[%clk 0:02:26]}  Nxd3 {[%clk 0:02:39]} 16. cxd3 {[%clk 0:02:25]}  h5 {[%clk 0:02:38]} 17. h4 {[%clk 0:02:23]}  Qd8 {[%clk 0:02:26]} 18. Na4 {[%clk 0:02:15]}  Ne7 {[%clk 0:02:20]} 19. Nc5 {[%clk 0:02:09]}  Bc6 {[%clk 0:02:15]} 20. Nd4 {[%clk 0:02:09]}  Nf5 {[%clk 0:02:08]} 21. Nxf5 {[%clk 0:02:07]}  gxf5 {[%clk 0:02:07]} 22. d4 {[%clk 0:02:05]}  b6 {[%clk 0:01:59]} 23. Nd3 {[%clk 0:02:02]}  Bb5 {[%clk 0:01:58]} 24. Rf2 {[%clk 0:01:59]}  Rc8 {[%clk 0:01:50]} 25. Rc2 {[%clk 0:01:37]}  Bc4 {[%clk 0:01:42]} 26. Nf2 {[%clk 0:01:26]}  Qd7 {[%clk 0:01:27]} 27. Rac1 {[%clk 0:01:22]}  Qa4 {[%clk 0:01:22]} 28. Rc3 {[%clk 0:01:18]}  Kd7 {[%clk 0:01:22]} 29. Qxa4+ {[%clk 0:01:17]} 1-0


[Site "https://www.chess.com"]

[Event "Titled Tuesday Blitz May 03 Early 2022"]
[White "Bellissimo, Joseph F."]
[Black "Zhu, Jiner"]
[WhiteFideId "2609843"]
[BlackFideId "8608059"]
[WhiteElo "2061"]
[BlackElo "2281"]
[Result "0-1"]
[Round "08"]
[TimeControl "180+1"]
[Date "2022.05.03"]
[WhiteClock "0:00:16"]
[BlackClock "0:00:14"]

1. e4 {[%clk 0:02:55]}  e5 {[%clk 0:02:59]} 2. Nf3 {[%clk 0:02:45]}  Nc6 {[%clk 0:02:59]} 3. Bc4 {[%clk 0:02:45]}  Bc5 {[%clk 0:02:57]} 4. c3 {[%clk 0:02:41]}  Nf6 {[%clk 0:02:53]} 5. d3 {[%clk 0:02:41]}  O-O {[%clk 0:02:51]} 6. Bg5 {[%clk 0:02:34]}  h6 {[%clk 0:02:44]} 7. Bh4 {[%clk 0:02:34]}  d6 {[%clk 0:02:33]} 8. Nbd2 {[%clk 0:02:32]}  Na5 {[%clk 0:02:31]} 9. Bb5 {[%clk 0:02:32]}  a6 {[%clk 0:02:28]} 10. Ba4 {[%clk 0:02:32]}  b5 {[%clk 0:02:26]} 11. Bc2 {[%clk 0:02:32]}  Bb6 {[%clk 0:02:26]} 12. Nf1 {[%clk 0:02:28]}  Be6 {[%clk 0:01:49]} 13. Ng3 {[%clk 0:02:22]}  g6 {[%clk 0:01:33]} 14. d4 {[%clk 0:01:59]}  Kg7 {[%clk 0:01:21]} 15. b3 {[%clk 0:01:33]}  g5 {[%clk 0:01:17]} 16. Nxg5 {[%clk 0:01:32]}  hxg5 {[%clk 0:01:18]} 17. Bxg5 {[%clk 0:01:33]}  Rh8 {[%clk 0:01:18]} 18. h4 {[%clk 0:01:25]}  Qe8 {[%clk 0:01:13]} 19. Qf3 {[%clk 0:01:22]}  Ng8 {[%clk 0:01:09]} 20. Nh5+ {[%clk 0:01:14]}  Rxh5 {[%clk 0:01:07]} 21. Qxh5 {[%clk 0:01:15]}  f6 {[%clk 0:01:07]} 22. Qxe8 {[%clk 0:01:09]}  Rxe8 {[%clk 0:01:08]} 23. Be3 {[%clk 0:01:10]}  exd4 {[%clk 0:00:57]} 24. cxd4 {[%clk 0:01:10]}  Bf7 {[%clk 0:00:40]} 25. O-O-O {[%clk 0:01:08]}  d5 {[%clk 0:00:36]} 26. f3 {[%clk 0:01:07]}  Nc6 {[%clk 0:00:35]} 27. h5 {[%clk 0:01:04]}  f5 {[%clk 0:00:33]} 28. h6+ {[%clk 0:01:01]}  Kh7 {[%clk 0:00:32]} 29. e5 {[%clk 0:00:59]}  Nxe5 {[%clk 0:00:25]} 30. Bxf5+ {[%clk 0:00:59]}  Bg6 {[%clk 0:00:20]} 31. Bxg6+ {[%clk 0:00:57]}  Nxg6 {[%clk 0:00:21]} 32. Bg5 {[%clk 0:00:55]}  c6 {[%clk 0:00:18]} 33. Rhe1 {[%clk 0:00:27]}  Rxe1 {[%clk 0:00:17]} 34. Rxe1 {[%clk 0:00:28]}  Bxd4 {[%clk 0:00:17]} 35. Re6 {[%clk 0:00:28]}  Nxh6 {[%clk 0:00:16]} 36. g4 {[%clk 0:00:24]}  Nf7 {[%clk 0:00:15]} 37. Bd2 {[%clk 0:00:22]}  Nge5 {[%clk 0:00:14]} 38. g5 {[%clk 0:00:18]}  Kg7 {[%clk 0:00:12]} 39. f4 {[%clk 0:00:18]}  Nf3 {[%clk 0:00:10]} 40. Rxc6 {[%clk 0:00:12]}  a5 {[%clk 0:00:10]} 41. Bxa5 {[%clk 0:00:11]}  Be3+ {[%clk 0:00:09]} 42. Kc2 {[%clk 0:00:10]}  Bxf4 {[%clk 0:00:08]} 43. Bc3+ {[%clk 0:00:09]}  Be5 {[%clk 0:00:08]} 44. Bxe5+ {[%clk 0:00:09]}  N7xe5 {[%clk 0:00:07]} 45. Rb6 {[%clk 0:00:10]}  Nd4+ {[%clk 0:00:03]} 46. Kc3 {[%clk 0:00:09]}  Nec6 {[%clk 0:00:03]} 47. a4 {[%clk 0:00:08]}  bxa4 {[%clk 0:00:04]} 48. bxa4 {[%clk 0:00:09]}  Kg6 {[%clk 0:00:03]} 49. a5 {[%clk 0:00:09]}  Kxg5 {[%clk 0:00:02]} 50. a6 {[%clk 0:00:09]}  Kf4 {[%clk 0:00:03]} 51. Kd3 {[%clk 0:00:07]}  Ke5 {[%clk 0:00:03]} 52. Rb7 {[%clk 0:00:05]}  Kd6 {[%clk 0:00:03]} 53. a7 {[%clk 0:00:06]}  Nxa7 {[%clk 0:00:03]} 54. Rxa7 {[%clk 0:00:06]}  Ne6 {[%clk 0:00:02]} 55. Ra6+ {[%clk 0:00:07]}  Ke5 {[%clk 0:00:02]} 56. Ke3 {[%clk 0:00:07]}  Nc5 {[%clk 0:00:02]} 57. Ra5 {[%clk 0:00:07]}  Ne6 {[%clk 0:00:02]} 58. Rb5 {[%clk 0:00:07]}  Kd6 {[%clk 0:00:01]} 59. Rb6+ {[%clk 0:00:07]}  Ke5 {[%clk 0:00:02]} 60. Rb8 {[%clk 0:00:08]}  Kd6 {[%clk 0:00:02]} 61. Rh8 {[%clk 0:00:08]}  Ke5 {[%clk 0:00:02]} 62. Rh5+ {[%clk 0:00:07]}  Kd6 {[%clk 0:00:03]} 63. Rf5 {[%clk 0:00:08]}  Kc6 {[%clk 0:00:02]} 64. Re5 {[%clk 0:00:08]}  Kd6 {[%clk 0:00:03]} 65. Rh5 {[%clk 0:00:06]}  Nc5 {[%clk 0:00:03]} 66. Kd4 {[%clk 0:00:05]}  Ne6+ {[%clk 0:00:04]} 67. Kc3 {[%clk 0:00:05]}  Kc5 {[%clk 0:00:04]} 68. Re5 {[%clk 0:00:05]}  Kd6 {[%clk 0:00:04]} 69. Rh5 {[%clk 0:00:05]}  Kc5 {[%clk 0:00:05]} 70. Rh6 {[%clk 0:00:05]}  Kd6 {[%clk 0:00:05]} 71. Rg6 {[%clk 0:00:05]}  Ke5 {[%clk 0:00:05]} 72. Kb4 {[%clk 0:00:04]}  Nf4 {[%clk 0:00:04]} 73. Rg5+ {[%clk 0:00:04]}  Ke4 {[%clk 0:00:04]} 74. Kc3 {[%clk 0:00:02]}  Ne6 {[%clk 0:00:04]} 75. Rg4+ {[%clk 0:00:01]}  Ke5 {[%clk 0:00:04]} 76. Rh4 {[%clk 0:00:02]}  Kd6 {[%clk 0:00:04]} 77. Kb3 {[%clk 0:00:02]}  Kc5 {[%clk 0:00:04]} 78. Kc3 {[%clk 0:00:02]}  Kd6 {[%clk 0:00:04]} 79. Kd3 {[%clk 0:00:02]}  Ke5 {[%clk 0:00:05]} 80. Rh5+ {[%clk 0:00:02]}  Kd6 {[%clk 0:00:05]} 81. Rh4 {[%clk 0:00:03]}  Kc6 {[%clk 0:00:04]} 82. Kc3 {[%clk 0:00:04]}  Kc5 {[%clk 0:00:05]} 83. Kc2 {[%clk 0:00:04]}  Nd4+ {[%clk 0:00:04]} 84. Kd1 {[%clk 0:00:04]}  Ne6 {[%clk 0:00:05]} 85. Rh6 {[%clk 0:00:04]}  Kd6 {[%clk 0:00:06]} 86. Rh5 {[%clk 0:00:05]}  Kc5 {[%clk 0:00:05]} 87. Re5 {[%clk 0:00:05]}  Kd6 {[%clk 0:00:05]} 88. Rf5 {[%clk 0:00:05]}  Nc5 {[%clk 0:00:05]} 89. Rh5 {[%clk 0:00:06]}  Ne6 {[%clk 0:00:06]} 90. Kd2 {[%clk 0:00:06]}  Nc5 {[%clk 0:00:06]} 91. Rh6+ {[%clk 0:00:07]}  Ne6 {[%clk 0:00:06]} 92. Ke3 {[%clk 0:00:07]}  Ke5 {[%clk 0:00:07]} 93. Rh5+ {[%clk 0:00:07]}  Kd6 {[%clk 0:00:07]} 94. Rf5 {[%clk 0:00:07]}  Kc6 {[%clk 0:00:07]} 95. Kd3 {[%clk 0:00:07]}  Kd6 {[%clk 0:00:08]} 96. Kc3 {[%clk 0:00:07]}  Kc5 {[%clk 0:00:08]} 97. Kb3 {[%clk 0:00:07]}  Nd4+ {[%clk 0:00:08]} 98. Kc3 {[%clk 0:00:08]}  Nxf5 {[%clk 0:00:09]} 99. Kd2 {[%clk 0:00:08]}  d4 {[%clk 0:00:09]} 100. Kd1 {[%clk 0:00:09]}  Kd5 {[%clk 0:00:10]} 101. Kc2 {[%clk 0:00:10]}  Ke4 {[%clk 0:00:11]} 102. Kd2 {[%clk 0:00:11]}  d3 {[%clk 0:00:11]} 103. Kd1 {[%clk 0:00:12]}  Ke3 {[%clk 0:00:11]} 104. Kc1 {[%clk 0:00:12]}  d2+ {[%clk 0:00:11]} 105. Kb1 {[%clk 0:00:13]}  Nh4 {[%clk 0:00:12]} 106. Kb2 {[%clk 0:00:14]}  Ke2 {[%clk 0:00:12]} 107. Ka2 {[%clk 0:00:15]}  d1=Q {[%clk 0:00:13]} 108. Kb2 {[%clk 0:00:16]}  Kd3 {[%clk 0:00:13]} 109. Ka2 {[%clk 0:00:15]}  Qd2+ {[%clk 0:00:13]} 110. Ka1 {[%clk 0:00:15]}  Kc4 {[%clk 0:00:13]} 111. Kb1 {[%clk 0:00:15]}  Kb3 {[%clk 0:00:13]} 112. Ka1 {[%clk 0:00:16]}  Qd1# {[%clk 0:00:14]} 0-1


[Site "https://www.chess.com"]

[Event "Titled Tuesday Blitz May 03 Early 2022"]
[White "Bendayan Claros, Aaron"]
[Black "Samadov, Read"]
[WhiteFideId "3803392"]
[BlackFideId "13417444"]
[WhiteElo "2132"]
[BlackElo "2084"]
[Result "0-1"]
[Round "08"]
[TimeControl "180+1"]
[Date "2022.05.03"]
[WhiteClock "0:00:06"]
[BlackClock "0:00:13"]

1. d4 {[%clk 0:03:00]}  Nf6 {[%clk 0:02:59]} 2. Bg5 {[%clk 0:03:00]}  d5 {[%clk 0:02:59]} 3. e3 {[%clk 0:02:59]}  e6 {[%clk 0:02:57]} 4. Nd2 {[%clk 0:02:58]}  c5 {[%clk 0:02:57]} 5. c3 {[%clk 0:02:56]}  Nc6 {[%clk 0:02:57]} 6. Bd3 {[%clk 0:02:55]}  h6 {[%clk 0:02:54]} 7. Bh4 {[%clk 0:02:54]}  Be7 {[%clk 0:02:53]} 8. f4 {[%clk 0:02:54]}  Qb6 {[%clk 0:02:50]} 9. Rb1 {[%clk 0:02:53]}  cxd4 {[%clk 0:02:41]} 10. exd4 {[%clk 0:02:53]}  Qc7 {[%clk 0:02:27]} 11. Qf3 {[%clk 0:02:38]}  b6 {[%clk 0:02:10]} 12. Bxf6 {[%clk 0:02:36]}  Bxf6 {[%clk 0:02:08]} 13. Qe3 {[%clk 0:02:35]}  g5 {[%clk 0:02:05]} 14. f5 {[%clk 0:02:29]}  e5 {[%clk 0:02:05]} 15. dxe5 {[%clk 0:02:29]}  Nxe5 {[%clk 0:02:04]} 16. Ngf3 {[%clk 0:02:27]}  O-O {[%clk 0:02:03]} 17. Nxe5 {[%clk 0:01:30]}  Bxe5 {[%clk 0:02:03]} 18. Nf3 {[%clk 0:01:30]}  Bf4 {[%clk 0:02:01]} 19. Qd4 {[%clk 0:01:23]}  Re8+ {[%clk 0:02:01]} 20. Kf1 {[%clk 0:01:21]}  g4 {[%clk 0:01:21]} 21. g3 {[%clk 0:00:53]}  Re3 {[%clk 0:00:44]} 22. Nh4 {[%clk 0:00:26]}  Bg5 {[%clk 0:00:35]} 23. Be2 {[%clk 0:00:06]}  Bb7 {[%clk 0:00:27]} 24. Bxg4 {[%clk 0:00:06]}  Re4 {[%clk 0:00:25]} 25. Qd1 {[%clk 0:00:05]}  d4 {[%clk 0:00:20]} 26. Bf3 {[%clk 0:00:05]}  dxc3 {[%clk 0:00:19]} 27. bxc3 {[%clk 0:00:05]}  Qxc3 {[%clk 0:00:18]} 28. Kg2 {[%clk 0:00:04]}  Rae8 {[%clk 0:00:17]} 29. Bxe4 {[%clk 0:00:03]}  Bxe4+ {[%clk 0:00:17]} 30. Kh3 {[%clk 0:00:04]}  Bxh4 {[%clk 0:00:13]} 31. Kxh4 {[%clk 0:00:03]}  Qf6+ {[%clk 0:00:13]} 32. Kh3 {[%clk 0:00:03]}  Bxf5+ {[%clk 0:00:13]} 33. g4 {[%clk 0:00:04]}  Re3+ {[%clk 0:00:10]} 34. Kg2 {[%clk 0:00:04]}  Be4+ {[%clk 0:00:10]} 35. Kg1 {[%clk 0:00:02]}  Rd3 {[%clk 0:00:10]} 36. Qf1 {[%clk 0:00:02]}  Qd4+ {[%clk 0:00:10]} 37. Qf2 {[%clk 0:00:02]}  Rd1+ {[%clk 0:00:09]} 38. Rxd1 {[%clk 0:00:03]}  Qxd1+ {[%clk 0:00:10]} 39. Qf1 {[%clk 0:00:03]}  Qxf1+ {[%clk 0:00:10]} 40. Kxf1 {[%clk 0:00:04]}  Bxh1 {[%clk 0:00:10]} 41. Kf2 {[%clk 0:00:04]}  Bd5 {[%clk 0:00:11]} 42. Kg3 {[%clk 0:00:05]}  Bxa2 {[%clk 0:00:11]} 43. Kf4 {[%clk 0:00:05]}  Be6 {[%clk 0:00:12]} 44. h4 {[%clk 0:00:06]}  b5 {[%clk 0:00:13]} 0-1


[Site "https://www.chess.com"]

[Event "Titled Tuesday Blitz May 03 Early 2022"]
[White "Clawitter, Craig"]
[Black "Quirke, Jeffrey"]
[WhiteFideId "2023105"]
[BlackFideId "2013029"]
[WhiteElo "2279"]
[BlackElo "2079"]
[Result "1-0"]
[Round "08"]
[TimeControl "180+1"]
[Date "2022.05.03"]
[WhiteClock "0:00:16"]
[BlackClock "0:00:01"]

1. e4 {[%clk 0:03:00]}  c5 {[%clk 0:02:58]} 2. Nf3 {[%clk 0:03:00]}  e6 {[%clk 0:02:58]} 3. d4 {[%clk 0:03:01]}  cxd4 {[%clk 0:02:59]} 4. Nxd4 {[%clk 0:03:01]}  a6 {[%clk 0:03:00]} 5. Bd3 {[%clk 0:03:02]}  Bc5 {[%clk 0:02:59]} 6. Nb3 {[%clk 0:03:01]}  Ba7 {[%clk 0:02:59]} 7. Nc3 {[%clk 0:03:00]}  Nc6 {[%clk 0:02:56]} 8. Qe2 {[%clk 0:03:00]}  d6 {[%clk 0:02:51]} 9. Be3 {[%clk 0:02:55]}  Bxe3 {[%clk 0:02:48]} 10. Qxe3 {[%clk 0:02:56]}  Nf6 {[%clk 0:02:48]} 11. O-O-O {[%clk 0:02:50]}  b5 {[%clk 0:02:41]} 12. f4 {[%clk 0:02:42]}  b4 {[%clk 0:02:38]} 13. Na4 {[%clk 0:02:12]}  e5 {[%clk 0:02:24]} 14. fxe5 {[%clk 0:01:50]}  Nxe5 {[%clk 0:02:24]} 15. Nb6 {[%clk 0:01:50]}  Rb8 {[%clk 0:02:15]} 16. Nxc8 {[%clk 0:01:33]}  Qxc8 {[%clk 0:02:13]} 17. Qg3 {[%clk 0:01:25]}  O-O {[%clk 0:02:03]} 18. Kb1 {[%clk 0:01:21]}  a5 {[%clk 0:01:45]} 19. Nd4 {[%clk 0:01:20]}  g6 {[%clk 0:01:26]} 20. Nf5 {[%clk 0:01:10]}  Qc7 {[%clk 0:01:21]} 21. Rhf1 {[%clk 0:00:58]}  Nh5 {[%clk 0:01:01]} 22. Qh4 {[%clk 0:00:54]}  f6 {[%clk 0:00:38]} 23. Ne3 {[%clk 0:00:45]}  a4 {[%clk 0:00:33]} 24. Nd5 {[%clk 0:00:41]}  Qd8 {[%clk 0:00:27]} 25. g4 {[%clk 0:00:36]}  b3 {[%clk 0:00:06]} 26. gxh5 {[%clk 0:00:20]}  bxa2+ {[%clk 0:00:05]} 27. Ka1 {[%clk 0:00:20]}  Qa5 {[%clk 0:00:01]} 28. hxg6 {[%clk 0:00:16]} 1-0


[Site "https://www.chess.com"]

[Event "Titled Tuesday Blitz May 03 Early 2022"]
[White "Coto Mederos, Michel"]
[Black "Yuan, Qingyu"]
[WhiteFideId "3508528"]
[BlackFideId "8609772"]
[WhiteElo "2427"]
[BlackElo "2359"]
[Result "0-1"]
[Round "08"]
[TimeControl "180+1"]
[Date "2022.05.03"]
[WhiteClock "0:00:04"]
[BlackClock "0:00:11"]

1. c4 {[%clk 0:03:00]}  e6 {[%clk 0:02:59]} 2. Nc3 {[%clk 0:03:00]}  d5 {[%clk 0:03:00]} 3. e3 {[%clk 0:03:01]}  Nf6 {[%clk 0:03:00]} 4. Nf3 {[%clk 0:03:01]}  Nbd7 {[%clk 0:03:00]} 5. b3 {[%clk 0:02:58]}  Bd6 {[%clk 0:02:59]} 6. Bb2 {[%clk 0:02:57]}  O-O {[%clk 0:02:58]} 7. Qc2 {[%clk 0:02:56]}  a6 {[%clk 0:02:55]} 8. d4 {[%clk 0:02:50]}  b6 {[%clk 0:02:53]} 9. Bd3 {[%clk 0:02:44]}  Bb7 {[%clk 0:02:52]} 10. cxd5 {[%clk 0:02:36]}  exd5 {[%clk 0:02:53]} 11. O-O {[%clk 0:02:33]}  Re8 {[%clk 0:02:53]} 12. Ne2 {[%clk 0:02:25]}  Ne4 {[%clk 0:02:49]} 13. Ng3 {[%clk 0:02:22]}  Qf6 {[%clk 0:02:32]} 14. Nd2 {[%clk 0:02:11]}  Qh4 {[%clk 0:02:21]} 15. Nf3 {[%clk 0:02:03]}  Qf6 {[%clk 0:02:11]} 16. Nd2 {[%clk 0:02:02]}  Qe6 {[%clk 0:01:45]} 17. Rac1 {[%clk 0:01:52]}  Ndf6 {[%clk 0:01:41]} 18. Rfe1 {[%clk 0:01:29]}  Ng4 {[%clk 0:01:11]} 19. Ndxe4 {[%clk 0:01:14]}  dxe4 {[%clk 0:01:09]} 20. Bc4 {[%clk 0:00:53]}  Qh6 {[%clk 0:00:58]} 21. h3 {[%clk 0:00:54]}  Bxg3 {[%clk 0:00:34]} 22. fxg3 {[%clk 0:00:54]}  Nxe3 {[%clk 0:00:27]} 23. Bxf7+ {[%clk 0:00:54]}  Kxf7 {[%clk 0:00:12]} 24. Qf2+ {[%clk 0:00:54]}  Kg8 {[%clk 0:00:11]} 25. Qxe3 {[%clk 0:00:49]}  Qxe3+ {[%clk 0:00:08]} 26. Rxe3 {[%clk 0:00:50]}  Re7 {[%clk 0:00:08]} 27. g4 {[%clk 0:00:37]}  Bd5 {[%clk 0:00:08]} 28. Ba3 {[%clk 0:00:34]}  Rd7 {[%clk 0:00:08]} 29. Bb2 {[%clk 0:00:34]}  Rf8 {[%clk 0:00:08]} 30. Rf1 {[%clk 0:00:33]}  Rxf1+ {[%clk 0:00:06]} 31. Kxf1 {[%clk 0:00:34]}  Kf7 {[%clk 0:00:06]} 32. Ke2 {[%clk 0:00:31]}  Ke6 {[%clk 0:00:07]} 33. Ke1 {[%clk 0:00:24]}  Bc6 {[%clk 0:00:05]} 34. Re2 {[%clk 0:00:24]}  g6 {[%clk 0:00:05]} 35. Kd2 {[%clk 0:00:23]}  Rf7 {[%clk 0:00:05]} 36. Ke1 {[%clk 0:00:23]}  Kd5 {[%clk 0:00:05]} 37. Rf2 {[%clk 0:00:23]}  Re7 {[%clk 0:00:04]} 38. Ba3 {[%clk 0:00:17]}  Re6 {[%clk 0:00:02]} 39. Bb2 {[%clk 0:00:16]}  e3 {[%clk 0:00:02]} 40. Rf8 {[%clk 0:00:15]}  Ke4 {[%clk 0:00:02]} 41. a4 {[%clk 0:00:11]}  Kd3 {[%clk 0:00:02]} 42. Rd8 {[%clk 0:00:10]}  Be4 {[%clk 0:00:02]} 43. d5 {[%clk 0:00:10]}  Rd6 {[%clk 0:00:02]} 44. Rxd6 {[%clk 0:00:09]}  cxd6 {[%clk 0:00:03]} 45. Ba3 {[%clk 0:00:10]}  Bxd5 {[%clk 0:00:04]} 46. Bxd6 {[%clk 0:00:11]}  Bxb3 {[%clk 0:00:04]} 47. Bc7 {[%clk 0:00:11]}  b5 {[%clk 0:00:04]} 48. axb5 {[%clk 0:00:12]}  axb5 {[%clk 0:00:05]} 49. Bd6 {[%clk 0:00:13]}  Bd5 {[%clk 0:00:05]} 50. Bc5 {[%clk 0:00:12]}  Bxg2 {[%clk 0:00:06]} 51. h4 {[%clk 0:00:13]}  Bf3 {[%clk 0:00:06]} 52. g5 {[%clk 0:00:13]}  e2 {[%clk 0:00:06]} 53. Be7 {[%clk 0:00:08]}  Kc3 {[%clk 0:00:06]} 54. Bf6+ {[%clk 0:00:08]}  Kc2 {[%clk 0:00:06]} 55. Be7 {[%clk 0:00:07]}  Bg4 {[%clk 0:00:06]} 56. Bd6 {[%clk 0:00:07]}  Kc3 {[%clk 0:00:06]} 57. Be5+ {[%clk 0:00:07]}  Kc4 {[%clk 0:00:07]} 58. Kd2 {[%clk 0:00:07]}  b4 {[%clk 0:00:07]} 59. Bf6 {[%clk 0:00:06]}  Kb3 {[%clk 0:00:07]} 60. Be7 {[%clk 0:00:06]}  Kc4 {[%clk 0:00:05]} 61. Bf6 {[%clk 0:00:06]}  b3 {[%clk 0:00:05]} 62. Be5 {[%clk 0:00:07]}  Kd5 {[%clk 0:00:05]} 63. Bg7 {[%clk 0:00:07]}  Ke4 {[%clk 0:00:06]} 64. Bf6 {[%clk 0:00:06]}  Kf3 {[%clk 0:00:06]} 65. Ke1 {[%clk 0:00:04]}  Ke3 {[%clk 0:00:06]} 66. Be5 {[%clk 0:00:03]}  Kd3 {[%clk 0:00:06]} 67. Bf6 {[%clk 0:00:02]}  Bh5 {[%clk 0:00:06]} 68. Bg7 {[%clk 0:00:02]}  Kc2 {[%clk 0:00:07]} 69. Bf6 {[%clk 0:00:03]}  Kc1 {[%clk 0:00:07]} 70. Bc3 {[%clk 0:00:03]}  Kc2 {[%clk 0:00:08]} 71. Bd4 {[%clk 0:00:02]}  b2 {[%clk 0:00:09]} 72. Bxb2 {[%clk 0:00:03]}  Kxb2 {[%clk 0:00:10]} 73. Kd2 {[%clk 0:00:04]}  Kb3 {[%clk 0:00:11]} 0-1


[Site "https://www.chess.com"]

[Event "Titled Tuesday Blitz May 03 Early 2022"]
[White "Dauner, Benedikt"]
[Black "Seo, Jung Min"]
[WhiteFideId "16225899"]
[BlackFideId "1734687"]
[WhiteElo "2230"]
[BlackElo "2401"]
[Result "1-0"]
[Round "08"]
[TimeControl "180+1"]
[Date "2022.05.03"]
[WhiteClock "0:01:22"]
[BlackClock "0:01:36"]

1. b3 {[%clk 0:02:58]}  e5 {[%clk 0:02:59]} 2. Bb2 {[%clk 0:02:59]}  Nc6 {[%clk 0:02:59]} 3. e3 {[%clk 0:03:00]}  a6 {[%clk 0:02:58]} 4. Nf3 {[%clk 0:02:59]}  d6 {[%clk 0:02:52]} 5. d4 {[%clk 0:02:59]}  Qe7 {[%clk 0:02:47]} 6. Nc3 {[%clk 0:02:54]}  Nf6 {[%clk 0:02:47]} 7. Bc4 {[%clk 0:02:44]}  h6 {[%clk 0:02:33]} 8. Nd5 {[%clk 0:02:40]}  Nxd5 {[%clk 0:02:32]} 9. Bxd5 {[%clk 0:02:41]}  exd4 {[%clk 0:02:26]} 10. Nxd4 {[%clk 0:02:33]}  Ne5 {[%clk 0:02:26]} 11. Qe2 {[%clk 0:02:23]}  c6 {[%clk 0:02:26]} 12. Bf3 {[%clk 0:02:15]}  g6 {[%clk 0:02:23]} 13. g3 {[%clk 0:02:10]}  Nxf3+ {[%clk 0:02:19]} 14. Nxf3 {[%clk 0:02:11]}  Rg8 {[%clk 0:02:18]} 15. O-O-O {[%clk 0:02:08]}  Bg4 {[%clk 0:02:10]} 16. h3 {[%clk 0:02:05]}  Be6 {[%clk 0:02:06]} 17. Nd4 {[%clk 0:02:03]}  Bd7 {[%clk 0:02:00]} 18. Qf3 {[%clk 0:01:56]}  O-O-O {[%clk 0:01:58]} 19. Kb1 {[%clk 0:01:45]}  Bg7 {[%clk 0:01:57]} 20. Rd2 {[%clk 0:01:41]}  h5 {[%clk 0:01:56]} 21. g4 {[%clk 0:01:37]}  hxg4 {[%clk 0:01:49]} 22. hxg4 {[%clk 0:01:38]}  Rh8 {[%clk 0:01:50]} 23. Rhd1 {[%clk 0:01:36]}  d5 {[%clk 0:01:45]} 24. Nxc6 {[%clk 0:01:27]}  Bxc6 {[%clk 0:01:38]} 25. Bxg7 {[%clk 0:01:27]}  d4 {[%clk 0:01:36]} 26. Qf6 {[%clk 0:01:22]} 1-0


[Site "https://www.chess.com"]